{"text_format":"1","workbook":"xlsx","n_sheets":6,"sheets":["Submission Form","Bottle Order","Tests","Labels","CustomerTests","Programs"],"not_rendered":{"charts":0,"images":1,"macros":1,"external_links":1,"defined_names":81,"comments":0,"pivot_tables":0},"unopened":[],"bounds":{"document_bytes":16777216,"sheet_cells":100000,"rows_first":2000,"rows_last":500,"rows_between":2000,"halvings":0,"cell_chars":16384,"cell_head_chars":4096},"cells_cut":0,"cells_raw":0,"read":"whole","date_system":"1900"}

{"sheet":"Submission Form","index":0,"n_rows":9,"n_cols":6,"rows_kept":9,"cut":false,"hidden":false,"merged":[[3,4,3,12],[5,4,5,12],[6,4,6,12],[4,4,4,12]]}
["Sample Submission & Bottle Order Form"]
[]
[null,"Serial # :","8-650772"]
[null,null,null,"Name:"]
[null,"Program #:",null,"Date Required:"]
[null,"Project #:",null,"Phone #:"]
[null,"Total # Sites:",null,"Email:"]
[]
[null,"Sample #","Customer Sample ID","Site/Sampler","Date Collected","Time Collected"]

{"sheet":"Bottle Order","index":1,"n_rows":6,"n_cols":5,"rows_kept":6,"cut":false,"hidden":false,"merged":[]}
["Serial #:","8-650772"]
["Program #:",{"$f":"'Submission Form'!C5","v":0}]
["Project #:",{"$f":"'Submission Form'!C6","v":0}]
["Total # Sites:",{"$f":"'Submission Form'!C7","v":0}]
["Test","Sample Hold Time (Days)","Bottle Type","Preservative","Count of Bottles req'd"]
["DI Water",null,"1 Liter",null,0]

{"sheet":"Tests","index":2,"n_rows":60,"n_cols":6,"rows_kept":60,"cut":false,"hidden":true,"merged":[]}
["Matrix","Test","PrepHoldingTime","AnalysisHoldingTime","BottleType","Preservative"]
["Air","Air Toxics Metals",null,180,null,"none"]
["Air","TO11 - Aldehydes in Air",14,30,"Cartridges for TO11","Cool 4 deg C"]
["Air","TO15 - SIM",null,30,"6 Liter Silco Steel Can","none"]
["Non Source Water","AGR Total Coliform-Tube Fermentation P/A",null,4,"Whirl Pak 300 ml","Cool 4 deg C"]
["Non Source Water","Total Coliform-Multiple Fermentation Tube",null,4,"Whirl Pak 300 ml","Cool 4 deg C"]
["Water","Acid Rain Metals",null,180,"125 ml round plastic","Conc HNO3 to pH < 2"]
["Water","AGR-Coliform, E.Coli, Colilert-MPN",null,1.25,"IDEXX, 120 ml","Cool 4 deg C"]
["Water","AGR-Coliform, Total, Colilert-MPN",null,1.25,"IDEXX, 120 ml","Cool 4 deg C"]
["Water","AGR_Colilert P-A",null,1.25,"IDEXX, 120 ml","Cool 4 deg C"]
["Water","Alkalinity",null,14,"250 ml square plastic","Cool 4 deg C"]
["Water","BOD - Total Uninhibited-5 day",null,5,"1 Liter plastic","Cool 4 deg C"]
["Water","CH1500",14,14,"2.4 Liter Amber w/ Teflon lined screw cap","Cool 4 deg C"]
["Water","CH800",14,14,"1 Liter Amber w/ Teflon lined screw cap","None"]
["Water","Chemical Oxygen Demand",null,28,"50 ml Plastic Blue Cap","Conc H2SO4 to pH < 2"]
["Water","Chloride - Water",null,28,"50 ml Plastic Purple Cap","None"]
["Water","Chlorophyll-a - Fluorometric",null,21]
["Water","CHMETAB",14,14,"2.4 Liter Amber w/ Teflon lined screw cap","Cool 4 deg C"]
["Water","Coliform, E. coli, Colilert - MPN",null,"8 hours","IDEXX Vessel","Cool 4 deg C"]
["Water","Coliform, E. coli, Colilert - Presence/Absence",null,"30 hours","IDEXX Vessel","Cool 4 deg C"]
["Water","Coliform, Total, Colilert - MPN",null,"31 hours","IDEXX Vessel","Cool 4 deg C"]
["Water","Coliform, Total, Colilert - presence/absence",null,"32 hours","IDEXX Vessel","Cool 4 deg C"]
["Water","Conductivity",null,28,"125 ml Rd Plastic","Cool 4 deg C"]
["Water","Dissolved Organic Carbon",null,28,"125 ml round plastic","Cool 4 deg C"]
["Water","Dissolved Oxygen",null,0.33,"300 ml DO bottle","None"]
["Water","Glyphosate",14,540,"50 ml Plastic Blue Cap","Cool 4 deg C"]
["Water","IC Anions - Chloride",null,28,"50 ml Plastic Purple Cap","Cool 4 deg C"]
["Water","IC Anions - Fluoride",null,28,"50 ml Plastic Purple Cap","Cool 4 deg C"]
["Water","IC Anions - Nitrate",null,2,"50 ml Plastic Purple Cap","Cool 4 deg C"]
["Water","IC Anions - Nitrite",null,2,"50 ml Plastic Purple Cap","Cool 4 deg C"]
["Water","IC Anions - Sulfate",null,28,"50 ml Plastic Purple Cap","Cool 4 deg C"]
["Water","Mercury - Water",null,28,"125 ml round plastic","Conc HNO3 to pH < 2"]
["Water","Mercury-ICPMS",null,28,"125 ml Rd Plastic","Conc HNO3 to pH < 2"]
["Water","Mercury-ICPMS_dissolved",null,28,"125 ml Rd Plastic","Conc HNO3 to pH < 2"]
["Water","Metals, All",null,180,"125 ml round plastic","Conc HNO3 to pH < 2"]
["Water","Metals, All-Dissolved",null,180,"125 ml round plastic","Conc HNO3 to pH < 2"]
["Water","Metals, Aluminium",null,180,"125 ml round plastic","Conc HNO3 to pH < 2"]
["Water","Metals, Aluminium Dissolved",null,180,"125 ml round plastic","Conc HNO3 to pH < 2"]
["Water","Metals, Aluminum Organic",null,180,"125 ml Rd Plastic","None"]
["Water","Metals, Priority",null,180,"125 ml round plastic","Conc HNO3 to pH < 2"]
["Water","Metals, Priority- Dissolved",null,180,"125 ml round plastic","Conc HNO3 to pH < 2"]
["Water","Metals,Earth",null,180,"125 ml round plastic","Conc HNO3 to pH < 2"]
["Water","Metals,Earth-Dissolved",null,180,"125 ml round plastic","Conc HNO3 to pH < 2"]
["Water","Neonicotinoid",14,28,"1 Liter Amber","Cool 4 deg C"]
["Water","Nitrate + Nitrite - Water",null,28,"50 ml centrifuge tube","conc H2SO4 to pH < 2"]
["Water","Nitrate - Filtered, Ion Chrom.",null,2,"50 ml centrifuge tube","Cool 4 deg C"]
["Water","Nitrite - Filtered, Ion Chrom.",null,2,"50 ml centrifuge tube","Cool 4 deg C"]
["Water","Nitrogen, Ammonia",null,28,"50 ml Plastic Blue Cap","conc H2SO4 to pH < 2"]
["Water","Nitrogen, Filtered - Persulfate",null,28,"50 ml Plastic Blue Cap","Conc H2SO4 to pH < 2"]
["Water","Nitrogen, Total - Persulfate",null,28,"50 ml Plastic Blue Cap","conc H2SO4 to pH < 2"]
["Water","Nitrogen, Total Kjeldahl",null,28,"250 ml round plastic","conc H2SO4 to pH < 2"]
["Water","Phosphorus - Digested",null,28,"60 ml glass vial","None"]
["Water","Phosphorus - Filtered/Digested",null,28,"60 ml glass vial","None"]
["Water","Phosphorus, Ortho - Filtered",null,2,"60 ml glass vial","Cool 4 deg C"]
["Water","RUSH Nitrate+Nitrite-Water",null,null,"50 ml Plastic Blue Cap","Conc H2SO4 to pH < 2"]
["Water","Silica (SiO2) - Filtered",null,28,"50 ml centrifuge tube","Cool 4 deg C"]
["Water","Solids, Total Suspended",null,7,"1 Liter plastic","Cool 4 deg C"]
["Water","Total Organic Carbon",null,28,"125 ml round plastic","Cool 4 deg C"]
["Water","Turbidity",null,2,"250 ml square plastic","Cool 4 deg C"]
["Water","WPR-Acid Herbicides",14,28,"1 Liter Amber w/ Teflon lined screw cap","None"]

{"sheet":"Labels","index":3,"n_rows":0,"n_cols":0,"rows_kept":0,"cut":false,"hidden":true,"merged":[]}

{"sheet":"CustomerTests","index":4,"n_rows":74,"n_cols":16,"rows_kept":74,"cut":false,"hidden":true,"merged":[]}
["CustomerID","ProjectID","Test"]
["002","NA","Alkalinity","Chloride - Water","Metals,Earth","Nitrogen, Total - Persulfate","Phosphorus - Digested"]
["004",1,"Chlorophyll-a - Fluorometric","Phosphorus - Digested"]
["004",2,"Chlorophyll-a - Fluorometric"]
["005","NA","Acid Rain Metals","Alkalinity","Chloride - Water","Conductivity","Dissolved Organic Carbon","IC Anions - Chloride","IC Anions - Nitrate","IC Anions - Sulfate","Metals, Aluminium","Metals, Aluminum Organic","Nitrate + Nitrite - Water","Nitrogen, Total - Persulfate","Phosphorus - Digested","Silica (SiO2) - Filtered"]
["006","NA","Chlorophyll-a - Fluorometric","Nitrogen, Total - Persulfate","Phosphorus - Digested","Phosphorus - Filtered/Digested"]
["008","NA","Alkalinity","Chloride - Water","Conductivity","IC Anions - Sulfate","Metals, All","Metals,Earth","Nitrate + Nitrite - Water","Nitrogen, Ammonia","Nitrogen, Total - Persulfate","Phosphorus - Digested","Phosphorus - Filtered/Digested","Solids, Total Suspended","Turbidity"]
["018","NA","BOD - Total Uninhibited-5 day","Chloride - Water","Metals, All","Phosphorus - Digested","Solids, Total Suspended"]
["020",900009,"Chemical Oxygen Demand","Chloride - Water","Metals, Priority","Metals, Priority- Dissolved"]
["020","BN030","Chemical Oxygen Demand","Chloride - Water","Metals, Priority","Metals, Priority- Dissolved"]
["020","NA","Chemical Oxygen Demand","Chloride - Water","Metals, Priority","Metals, Priority- Dissolved"]
["044",3,"Chloride - Water","Nitrogen, Total - Persulfate","Phosphorus - Digested"]
["044","NA","Alkalinity","Chloride - Water","Chlorophyll-a - Fluorometric","Metals,Earth","Nitrogen, Total - Persulfate","Phosphorus - Digested","Turbidity"]
["063","NA","Alkalinity","Chloride - Water","Chlorophyll-a - Fluorometric","Conductivity","Dissolved Oxygen","Metals,Earth","Nitrogen, Total - Persulfate","Phosphorus - Digested","Phosphorus - Filtered/Digested","Silica (SiO2) - Filtered","Solids, Total Suspended"]
["064","NA","CH800","Nitrate + Nitrite - Water"]
["096",2,"Metals, All"]
["096","NA","Coliform, E. coli, Colilert - MPN","Glyphosate","Metals, All","Metals, Priority","Nitrate + Nitrite - Water"]
[104,"NA","Alkalinity","Chloride - Water","Conductivity","IC Anions - Chloride","IC Anions - Sulfate","Metals, All","Metals, Earth","Nitrate + Nitrite - Water","Nitrogen, Total - Persulfate","Phosphorus - Digested","Phosphorus - Filtered/Digested","Solids, Total Suspended","Turbidity"]
[108,"NA","TO11 - Aldehydes in Air"]
[110,"NA","TO15 - SIM"]
[111,"NA","TO11 - Aldehydes in Air"]
[112,"NA","Air Toxics Metals"]
[137,1,"Coliform, E. coli, Colilert - MPN","Nitrate + Nitrite - Water","Nitrogen, Total - Persulfate","Phosphorus - Digested","Phosphorus - Filtered/Digested","Solids, Total Suspended","Turbidity"]
[137,4,"Coliform, E. coli, Colilert - MPN"]
[137,6,"Chloride - Water","Nitrate + Nitrite - Water","Nitrogen, Ammonia","Nitrogen, Total - Persulfate","Phosphorus - Digested","Phosphorus - Filtered/Digested","Solids, Total Suspended","Turbidity"]
[137,7,"Coliform, E. coli, Colilert - MPN","Phosphorus - Digested"]
[137,9,"Nitrogen, Total - Persulfate","Phosphorus - Digested","Turbidity"]
[137,13,"Chloride - Water","Coliform, E. coli, Colilert - MPN","Phosphorus - Digested","Turbidity"]
[137,17,"Coliform, E. coli, Colilert - MPN","Nitrogen, Total - Persulfate","Phosphorus - Digested","Turbidity"]
[137,22,"Coliform, E. coli, Colilert - MPN","Nitrogen, Total - Persulfate","Phosphorus - Digested","Turbidity"]
[137,25,"Nitrate + Nitrite - Water","Nitrogen, Total - Persulfate","Phosphorus - Digested","Turbidity"]
[137,28,"Coliform, E. coli, Colilert - MPN","Phosphorus - Digested","Turbidity"]
[137,29,"Alkalinity","Chloride - Water","Coliform, E. coli, Colilert - MPN","Nitrogen, Total - Persulfate","Phosphorus - Digested","Turbidity"]
[137,30,"Nitrogen, Total - Persulfate","Phosphorus - Digested","Phosphorus - Filtered/Digested","Turbidity"]
[137,31,"Nitrogen, Total - Persulfate","Phosphorus - Digested","Turbidity"]
[137,33,"Nitrogen, Total - Persulfate","Phosphorus - Digested"]
[137,34,"Nitrogen, Total - Persulfate","Phosphorus - Digested","Solids, Total Suspended"]
[137,38,"Chloride - Water","Coliform, E. coli, Colilert - MPN","Nitrogen, Total - Persulfate","Phosphorus - Digested","Turbidity"]
[137,40,"Chloride - Water","Coliform, E. coli, Colilert - MPN","Phosphorus - Digested","Turbidity"]
[137,41,"Chloride - Water","Nitrogen, Total - Persulfate","Phosphorus - Digested","Turbidity"]
[137,45,"Chloride - Water","Nitrogen, Total - Persulfate","Phosphorus - Digested","Solids, Total Suspended","Turbidity"]
[137,49,"Chloride - Water","Phosphorus - Digested","Turbidity"]
[137,50,"Chloride - Water","Nitrate + Nitrite - Water","Nitrogen, Total - Persulfate","Phosphorus - Digested"]
[137,55,"Chloride - Water","Nitrogen, Total - Persulfate","Phosphorus - Digested","Turbidity"]
["137",62,"Alkalinity","Nitrogen, Total - Persulfate","Phosphorus - Digested"]
[137,63,"Nitrogen, Total - Persulfate","Phosphorus - Digested"]
[147,"NA","Alkalinity","Chloride - Water","IC Anions - Fluoride","IC Anions - Sulfate","Mercury - Water","Mercury-ICPMS","Metals, All","Nitrate + Nitrite - Water","Phosphorus - Digested","Phosphorus - Filtered/Digested","Silica (SiO2) - Filtered"]
[149,"NA","Coliform, E. coli, Colilert - MPN"]
[159,"NA","Phosphorus - Digested","Phosphorus - Filtered/Digested","Solids, Total Suspended"]
[166,"NA","Alkalinity","BOD - Total Uninhibited-5 day","CH1500","Metals, All","Nitrogen, Ammonia","Phosphorus - Digested","Solids, Total Suspended"]
[169,"NA","AGR - Acid Herbicides","BOD - Total Uninhibited-5 day","CH800","Chloride - Water","CHMETAB","Glyphosate","Metals, All","Neonicotinoid","Nitrate + Nitrite - Water","Nitrogen, Ammonia","Nitrogen, Total - Persulfate","Phosphorus - Digested"]
[182,"NA","Chloride - Water","Nitrate + Nitrite - Water","Nitrogen, Ammonia","Nitrogen, Filtered - Persulfate","Nitrogen, Total - Persulfate","Phosphorus - Digested","Phosphorus - Filtered/Digested","Phosphorus, Ortho - Filtered","Solids, Total Suspended"]
[191,"NA","Phosphorus - Digested"]
[202,"NA","Metals, All","Metals,Earth"]
[204,"NA","AGR-Coliform, E.Coli, Colilert-MPN","AGR-Coliform, Total, Colilert-MPN","CH1500","CH800","Chloride - Water","CHMETAB","Coliform, E. coli, Colilert - Presence/Absence","Coliform, Total, Colilert - presence/absence","Nitrate + Nitrite - Water","Nitrogen, Ammonia","Nitrogen, Total - Persulfate","Phosphorus - Digested"]
[207,"NA","AGR - Acid Herbicides"]
[300,"NA","Metals, Priority"]
[313,"NA","Phosphorus - Digested"]
[315,"NA","Coliform, E. coli, Colilert - MPN","Nitrogen, Total - Persulfate"]
[316,1,"Chloride - Water","Nitrogen, Filtered - Persulfate","Nitrogen, Total - Persulfate","Phosphorus - Digested","Phosphorus - Filtered/Digested","Solids, Total Suspended"]
[316,2,"Chloride - Water","Nitrogen, Filtered - Persulfate","Nitrogen, Total - Persulfate","Phosphorus - Digested","Phosphorus - Filtered/Digested"]
[316,"NA","BOD - Total Uninhibited-5 day","Chloride - Water","Nitrogen, Filtered - Persulfate","Nitrogen, Total - Persulfate","Phosphorus - Digested","Phosphorus - Filtered/Digested","Solids, Total Suspended"]
[317,"NA","Nitrogen, Total - Persulfate","Phosphorus - Digested","Phosphorus - Filtered/Digested"]
[320,"NA","Nitrogen, Total - Persulfate"]
[321,"NA","Nitrate + Nitrite - Water","Nitrogen, Ammonia","Nitrogen, Total - Persulfate"]
[322,"NA","Metals, Priority"]
[400,"1","Nitrogen, Total - Persulfate","Phosphorus - Digested","Phosphorus - Filtered/Digested"]
[400,"2","Nitrogen, Total - Persulfate","Phosphorus - Digested","Phosphorus - Filtered/Digested"]
[400,"3","Nitrogen, Total - Persulfate","Phosphorus - Digested","Phosphorus - Filtered/Digested"]
[400,"4","Nitrogen, Total - Persulfate","Phosphorus - Digested","Phosphorus - Filtered/Digested"]
[400,"5","Nitrogen, Total - Persulfate","Phosphorus - Digested","Phosphorus - Filtered/Digested"]
[400,"6","Nitrogen, Total - Persulfate","Phosphorus - Digested","Phosphorus - Filtered/Digested"]
[400,"7","Nitrogen, Total - Persulfate","Phosphorus - Digested","Phosphorus - Filtered/Digested"]
[400,"NA","Nitrogen, Total - Persulfate","Phosphorus - Digested","Phosphorus - Filtered/Digested"]

{"sheet":"Programs","index":5,"n_rows":37,"n_cols":76,"rows_kept":37,"cut":false,"hidden":true,"merged":[]}
["002",null,"004",null,"005",null,"006",null,"008",null,"018",null,"020",null,"044",null,"063",null,"064",null,"096",null,"104",null,"108",null,"110",null,"111",null,"112",null,"137",null,"147",null,"149",null,"159",null,"166",null,"169",null,"182",null,"191",null,"202",null,"204",null,"207",null,"300",null,"313",null,"315",null,"316",null,"317",null,"320",null,"321",null,"322",null,"400",null,"CustomerID","Column1",null,"DIWater"]
["NA",null,1,null,"NA",null,"NA",null,"NA",null,"NA",null,900009,null,3,null,"NA",null,"NA",null,2,null,"NA",null,"NA",null,"NA",null,"NA",null,"NA",null,1,null,"NA",null,"NA",null,"NA",null,"NA",null,"NA",null,"NA",null,"NA",null,"NA",null,"NA",null,"NA",null,"NA",null,"NA",null,"NA",null,1,null,"NA",null,"NA",null,"NA",null,"NA",null,"1",null,"002",{"$f":"\"_\" & Table38[[#This Row],[CustomerID]]","v":"_002"},null,"250 mL"]
[null,null,2,null,null,null,null,null,null,null,null,null,"BN030",null,"NA",null,null,null,null,null,"NA",null,null,null,null,null,null,null,null,null,null,null,4,null,null,null,null,null,null,null,null,null,null,null,null,null,null,null,null,null,null,null,null,null,null,null,null,null,null,null,2,null,null,null,null,null,null,null,null,null,"2",null,"004",{"$f":"\"_\" & Table38[[#This Row],[CustomerID]]","v":"_004"},null,"1 L"]
[null,null,null,null,null,null,null,null,null,null,null,null,"NA",null,null,null,null,null,null,null,null,null,null,null,null,null,null,null,null,null,null,null,6,null,null,null,null,null,null,null,null,null,null,null,null,null,null,null,null,null,null,null,null,null,null,null,null,null,null,null,"NA",null,null,null,null,null,null,null,null,null,"3",null,"005",{"$f":"\"_\" & Table38[[#This Row],[CustomerID]]","v":"_005"}]
[null,null,null,null,null,null,null,null,null,null,null,null,null,null,null,null,null,null,null,null,null,null,null,null,null,null,null,null,null,null,null,null,7,null,null,null,null,null,null,null,null,null,null,null,null,null,null,null,null,null,null,null,null,null,null,null,null,null,null,null,null,null,null,null,null,null,null,null,null,null,4,null,"006",{"$f":"\"_\" & Table38[[#This Row],[CustomerID]]","v":"_006"}]
[null,null,null,null,null,null,null,null,null,null,null,null,null,null,null,null,null,null,null,null,null,null,null,null,null,null,null,null,null,null,null,null,9,null,null,null,null,null,null,null,null,null,null,null,null,null,null,null,null,null,null,null,null,null,null,null,null,null,null,null,null,null,null,null,null,null,null,null,null,null,5,null,"008",{"$f":"\"_\" & Table38[[#This Row],[CustomerID]]","v":"_008"}]
[null,null,null,null,null,null,null,null,null,null,null,null,null,null,null,null,null,null,null,null,null,null,null,null,null,null,null,null,null,null,null,null,13,null,null,null,null,null,null,null,null,null,null,null,null,null,null,null,null,null,null,null,null,null,null,null,null,null,null,null,null,null,null,null,null,null,null,null,null,null,6,null,"018",{"$f":"\"_\" & Table38[[#This Row],[CustomerID]]","v":"_018"}]
[null,null,null,null,null,null,null,null,null,null,null,null,null,null,null,null,null,null,null,null,null,null,null,null,null,null,null,null,null,null,null,null,17,null,null,null,null,null,null,null,null,null,null,null,null,null,null,null,null,null,null,null,null,null,null,null,null,null,null,null,null,null,null,null,null,null,null,null,null,null,7,null,"020",{"$f":"\"_\" & Table38[[#This Row],[CustomerID]]","v":"_020"}]
[null,null,null,null,null,null,null,null,null,null,null,null,null,null,null,null,null,null,null,null,null,null,null,null,null,null,null,null,null,null,null,null,22,null,null,null,null,null,null,null,null,null,null,null,null,null,null,null,null,null,null,null,null,null,null,null,null,null,null,null,null,null,null,null,null,null,null,null,null,null,"NA",null,"044",{"$f":"\"_\" & Table38[[#This Row],[CustomerID]]","v":"_044"}]
[null,8,null,null,null,null,null,null,null,null,null,null,null,null,null,null,null,null,null,null,null,null,null,null,null,null,null,null,null,null,null,null,25,null,null,null,null,null,null,null,null,null,null,null,null,null,null,null,null,null,null,null,null,null,null,null,null,null,null,null,null,null,null,null,null,null,null,null,null,null,null,null,"063",{"$f":"\"_\" & Table38[[#This Row],[CustomerID]]","v":"_063"}]
[null,650772,null,null,null,null,null,null,null,null,null,null,null,null,null,null,null,null,null,null,null,null,null,null,null,null,null,null,null,null,null,null,28,null,null,null,null,null,null,null,null,null,null,null,null,null,null,null,null,null,null,null,null,null,null,null,null,null,null,null,null,null,null,null,null,null,null,null,null,null,null,null,"064",{"$f":"\"_\" & Table38[[#This Row],[CustomerID]]","v":"_064"}]
[null,null,null,null,null,null,null,null,null,null,null,null,null,null,null,null,null,null,null,null,null,null,null,null,null,null,null,null,null,null,null,null,29,null,null,null,null,null,null,null,null,null,null,null,null,null,null,null,null,null,null,null,null,null,null,null,null,null,null,null,null,null,null,null,null,null,null,null,null,null,null,null,"096",{"$f":"\"_\" & Table38[[#This Row],[CustomerID]]","v":"_096"}]
[null,null,null,null,null,null,null,null,null,null,null,null,null,null,null,null,null,null,null,null,null,null,null,null,null,null,null,null,null,null,null,null,30,null,null,null,null,null,null,null,null,null,null,null,null,null,null,null,null,null,null,null,null,null,null,null,null,null,null,null,null,null,null,null,null,null,null,null,null,null,null,null,104,{"$f":"\"_\" & Table38[[#This Row],[CustomerID]]","v":"_104"}]
[null,null,null,null,null,null,null,null,null,null,null,null,null,null,null,null,null,null,null,null,null,null,null,null,null,null,null,null,null,null,null,null,31,null,null,null,null,null,null,null,null,null,null,null,null,null,null,null,null,null,null,null,null,null,null,null,null,null,null,null,null,null,null,null,null,null,null,null,null,null,null,null,108,{"$f":"\"_\" & Table38[[#This Row],[CustomerID]]","v":"_108"}]
[null,null,null,null,null,null,null,null,null,null,null,null,null,null,null,null,null,null,null,null,null,null,null,null,null,null,null,null,null,null,null,null,33,null,null,null,null,null,null,null,null,null,null,null,null,null,null,null,null,null,null,null,null,null,null,null,null,null,null,null,null,null,null,null,null,null,null,null,null,null,null,null,110,{"$f":"\"_\" & Table38[[#This Row],[CustomerID]]","v":"_110"}]
[null,null,null,null,null,null,null,null,null,null,null,null,null,null,null,null,null,null,null,null,null,null,null,null,null,null,null,null,null,null,null,null,34,null,null,null,null,null,null,null,null,null,null,null,null,null,null,null,null,null,null,null,null,null,null,null,null,null,null,null,null,null,null,null,null,null,null,null,null,null,null,null,111,{"$f":"\"_\" & Table38[[#This Row],[CustomerID]]","v":"_111"}]
[null,null,null,null,null,null,null,null,null,null,null,null,null,null,null,null,null,null,null,null,null,null,null,null,null,null,null,null,null,null,null,null,38,null,null,null,null,null,null,null,null,null,null,null,null,null,null,null,null,null,null,null,null,null,null,null,null,null,null,null,null,null,null,null,null,null,null,null,null,null,null,null,112,{"$f":"\"_\" & Table38[[#This Row],[CustomerID]]","v":"_112"}]
[null,null,null,null,null,null,null,null,null,null,null,null,null,null,null,null,null,null,null,null,null,null,null,null,null,null,null,null,null,null,null,null,40,null,null,null,null,null,null,null,null,null,null,null,null,null,null,null,null,null,null,null,null,null,null,null,null,null,null,null,null,null,null,null,null,null,null,null,null,null,null,null,137,{"$f":"\"_\" & Table38[[#This Row],[CustomerID]]","v":"_137"}]
[null,null,null,null,null,null,null,null,null,null,null,null,null,null,null,null,null,null,null,null,null,null,null,null,null,null,null,null,null,null,null,null,41,null,null,null,null,null,null,null,null,null,null,null,null,null,null,null,null,null,null,null,null,null,null,null,null,null,null,null,null,null,null,null,null,null,null,null,null,null,null,null,147,{"$f":"\"_\" & Table38[[#This Row],[CustomerID]]","v":"_147"}]
[null,null,null,null,null,null,null,null,null,null,null,null,null,null,null,null,null,null,null,null,null,null,null,null,null,null,null,null,null,null,null,null,45,null,null,null,null,null,null,null,null,null,null,null,null,null,null,null,null,null,null,null,null,null,null,null,null,null,null,null,null,null,null,null,null,null,null,null,null,null,null,null,149,{"$f":"\"_\" & Table38[[#This Row],[CustomerID]]","v":"_149"}]
[null,null,null,null,null,null,null,null,null,null,null,null,null,null,null,null,null,null,null,null,null,null,null,null,null,null,null,null,null,null,null,null,49,null,null,null,null,null,null,null,null,null,null,null,null,null,null,null,null,null,null,null,null,null,null,null,null,null,null,null,null,null,null,null,null,null,null,null,null,null,null,null,159,{"$f":"\"_\" & Table38[[#This Row],[CustomerID]]","v":"_159"}]
[null,null,null,null,null,null,null,null,null,null,null,null,null,null,null,null,null,null,null,null,null,null,null,null,null,null,null,null,null,null,null,null,50,null,null,null,null,null,null,null,null,null,null,null,null,null,null,null,null,null,null,null,null,null,null,null,null,null,null,null,null,null,null,null,null,null,null,null,null,null,null,null,166,{"$f":"\"_\" & Table38[[#This Row],[CustomerID]]","v":"_166"}]
[null,null,null,null,null,null,null,null,null,null,null,null,null,null,null,null,null,null,null,null,null,null,null,null,null,null,null,null,null,null,null,null,55,null,null,null,null,null,null,null,null,null,null,null,null,null,null,null,null,null,null,null,null,null,null,null,null,null,null,null,null,null,null,null,null,null,null,null,null,null,null,null,169,{"$f":"\"_\" & Table38[[#This Row],[CustomerID]]","v":"_169"}]
[null,null,null,null,null,null,null,null,null,null,null,null,null,null,null,null,null,null,null,null,null,null,null,null,null,null,null,null,null,null,null,null,62,null,null,null,null,null,null,null,null,null,null,null,null,null,null,null,null,null,null,null,null,null,null,null,null,null,null,null,null,null,null,null,null,null,null,null,null,null,null,null,182,{"$f":"\"_\" & Table38[[#This Row],[CustomerID]]","v":"_182"}]
[null,null,null,null,null,null,null,null,null,null,null,null,null,null,null,null,null,null,null,null,null,null,null,null,null,null,null,null,null,null,null,null,63,null,null,null,null,null,null,null,null,null,null,null,null,null,null,null,null,null,null,null,null,null,null,null,null,null,null,null,null,null,null,null,null,null,null,null,null,null,null,null,191,{"$f":"\"_\" & Table38[[#This Row],[CustomerID]]","v":"_191"}]
[null,null,null,null,null,null,null,null,null,null,null,null,null,null,null,null,null,null,null,null,null,null,null,null,null,null,null,null,null,null,null,null,null,null,null,null,null,null,null,null,null,null,null,null,null,null,null,null,null,null,null,null,null,null,null,null,null,null,null,null,null,null,null,null,null,null,null,null,null,null,null,null,202,{"$f":"\"_\" & Table38[[#This Row],[CustomerID]]","v":"_202"}]
[null,null,null,null,null,null,null,null,null,null,null,null,null,null,null,null,null,null,null,null,null,null,null,null,null,null,null,null,null,null,null,null,null,null,null,null,null,null,null,null,null,null,null,null,null,null,null,null,null,null,null,null,null,null,null,null,null,null,null,null,null,null,null,null,null,null,null,null,null,null,null,null,204,{"$f":"\"_\" & Table38[[#This Row],[CustomerID]]","v":"_204"}]
[null,null,null,null,null,null,null,null,null,null,null,null,null,null,null,null,null,null,null,null,null,null,null,null,null,null,null,null,null,null,null,null,null,null,null,null,null,null,null,null,null,null,null,null,null,null,null,null,null,null,null,null,null,null,null,null,null,null,null,null,null,null,null,null,null,null,null,null,null,null,null,null,207,{"$f":"\"_\" & Table38[[#This Row],[CustomerID]]","v":"_207"}]
[null,null,null,null,null,null,null,null,null,null,null,null,null,null,null,null,null,null,null,null,null,null,null,null,null,null,null,null,null,null,null,null,null,null,null,null,null,null,null,null,null,null,null,null,null,null,null,null,null,null,null,null,null,null,null,null,null,null,null,null,null,null,null,null,null,null,null,null,null,null,null,null,300,{"$f":"\"_\" & Table38[[#This Row],[CustomerID]]","v":"_300"}]
[null,null,null,null,null,null,null,null,null,null,null,null,null,null,null,null,null,null,null,null,null,null,null,null,null,null,null,null,null,null,null,null,null,null,null,null,null,null,null,null,null,null,null,null,null,null,null,null,null,null,null,null,null,null,null,null,null,null,null,null,null,null,null,null,null,null,null,null,null,null,null,null,313,{"$f":"\"_\" & Table38[[#This Row],[CustomerID]]","v":"_313"}]
[null,null,null,null,null,null,null,null,null,null,null,null,null,null,null,null,null,null,null,null,null,null,null,null,null,null,null,null,null,null,null,null,null,null,null,null,null,null,null,null,null,null,null,null,null,null,null,null,null,null,null,null,null,null,null,null,null,null,null,null,null,null,null,null,null,null,null,null,null,null,null,null,315,{"$f":"\"_\" & Table38[[#This Row],[CustomerID]]","v":"_315"}]
[null,null,null,null,null,null,null,null,null,null,null,null,null,null,null,null,null,null,null,null,null,null,null,null,null,null,null,null,null,null,null,null,null,null,null,null,null,null,null,null,null,null,null,null,null,null,null,null,null,null,null,null,null,null,null,null,null,null,null,null,null,null,null,null,null,null,null,null,null,null,null,null,316,{"$f":"\"_\" & Table38[[#This Row],[CustomerID]]","v":"_316"}]
[null,null,null,null,null,null,null,null,null,null,null,null,null,null,null,null,null,null,null,null,null,null,null,null,null,null,null,null,null,null,null,null,null,null,null,null,null,null,null,null,null,null,null,null,null,null,null,null,null,null,null,null,null,null,null,null,null,null,null,null,null,null,null,null,null,null,null,null,null,null,null,null,317,{"$f":"\"_\" & Table38[[#This Row],[CustomerID]]","v":"_317"}]
[null,null,null,null,null,null,null,null,null,null,null,null,null,null,null,null,null,null,null,null,null,null,null,null,null,null,null,null,null,null,null,null,null,null,null,null,null,null,null,null,null,null,null,null,null,null,null,null,null,null,null,null,null,null,null,null,null,null,null,null,null,null,null,null,null,null,null,null,null,null,null,null,320,{"$f":"\"_\" & Table38[[#This Row],[CustomerID]]","v":"_320"}]
[null,null,null,null,null,null,null,null,null,null,null,null,null,null,null,null,null,null,null,null,null,null,null,null,null,null,null,null,null,null,null,null,null,null,null,null,null,null,null,null,null,null,null,null,null,null,null,null,null,null,null,null,null,null,null,null,null,null,null,null,null,null,null,null,null,null,null,null,null,null,null,null,321,{"$f":"\"_\" & Table38[[#This Row],[CustomerID]]","v":"_321"}]
[null,null,null,null,null,null,null,null,null,null,null,null,null,null,null,null,null,null,null,null,null,null,null,null,null,null,null,null,null,null,null,null,null,null,null,null,null,null,null,null,null,null,null,null,null,null,null,null,null,null,null,null,null,null,null,null,null,null,null,null,null,null,null,null,null,null,null,null,null,null,null,null,322,{"$f":"\"_\" & Table38[[#This Row],[CustomerID]]","v":"_322"}]
[null,null,null,null,null,null,null,null,null,null,null,null,null,null,null,null,null,null,null,null,null,null,null,null,null,null,null,null,null,null,null,null,null,null,null,null,null,null,null,null,null,null,null,null,null,null,null,null,null,null,null,null,null,null,null,null,null,null,null,null,null,null,null,null,null,null,null,null,null,null,null,null,400,{"$f":"\"_\" & Table38[[#This Row],[CustomerID]]","v":"_400"}]